bitfinex-derivatives/quotes_ETHF0:USTF0_20250116
["timestamp","ask_amount","ask_price","bid_price","bid_amount"]
[1737010063818,2.33634785,3377.9,3377.8,0.59218]
[1737010065819,2.33634785,3377.9,3377.6,44.0078]
[1737010066018,2.33634785,3377.9,3377.7,0.5922]
[1737010069321,2.33634785,3377.9,3377.6,3.80001]
[1737010069520,5.54414785,3377.9,3377.3,0.7212]
[1737010069714,2.33634785,3377.4,3376.8,3.9863]
[1737010069919,1.5089,3377.3,3376.9,1.33283]
[1737010070119,2.33634785,3377.1,3376.9,1.33283]
[1737010070424,2.33634785,3377.1,3376.9,0.7405]
[1737010070625,2.33634785,3377.1,3376.8,3.2078]
[1737010070825,2.33634785,3377.1,3377.0,0.59233]
[1737010071825,2.33634785,3377.1,3376.9,0.59234]
[1737010072428,2.33634785,3377.1,3376.9,0.59233]
[1737010072629,2.33634785,3377.1,3376.8,3.2078]
[1737010073125,2.92865785,3377.1,3376.8,3.2078]
[1737010073325,2.33634785,3377.1,3376.8,3.2078]
[1737010073528,2.33634785,3377.1,3376.8,3.80016]
[1737010073727,2.92866785,3377.1,3376.8,3.2078]
[1737010074528,2.33634785,3377.1,3376.8,3.80015]
[1737010076118,5.54414785,3377.1,3376.5,1.519]
[1737010076319,2.33634785,3376.7,3376.6,0.59238]
[1737010077924,3.2078,3377.1,3377.0,0.59233]
[1737010078126,2.33634785,3377.2,3376.7,3.2078]
[1737010078324,0.7919,3377.4,3377.1,0.59231]
[1737010078627,0.7919,3377.4,3377.2,40.8]
[1737010078834,0.59228,3377.3,3376.9,0.59233]
[1737010079134,0.5923,3377.2,3376.8,0.59235]
[1737010079335,2.33634785,3376.9,3376.8,41.39235]
[1737010079838,2.33634785,3376.9,3376.8,40.8]
[1737010080027,2.33634785,3376.9,3376.8,41.39236]
[1737010080735,2.33634785,3376.9,3376.5,1.519]
[1737010081334,2.33634785,3376.6,3376.5,42.13291]
[1737010081530,2.33634785,3376.6,3376.5,41.5405]
[1737010082032,2.33634785,3376.6,3376.5,42.13291]
[1737010082534,2.33634785,3376.6,3376.5,41.5405]
[1737010082832,2.33634785,3376.6,3376.5,42.13291]
[1737010084034,2.33634785,3376.6,3376.5,41.39241]
[1737010085433,2.33634785,3376.6,3376.5,40.8]
[1737010085834,2.33634785,3376.6,3376.5,41.39241]
[1737010086231,2.33634785,3376.6,3376.3,3.2078]
[1737010086429,2.33634785,3376.6,3376.5,0.59241]
[1737010088530,2.33634785,3376.6,3376.5,41.39241]
[1737010090535,2.33634785,3376.6,3376.4,0.59242]
[1737010090838,2.92874785,3376.6,3376.3,3.80024]
[1737010091140,1.5618,3376.5,3376.3,44.60024]
[1737010091339,0.7488,3376.4,3376.3,3.80025]
[1737010091839,0.776,3376.5,3376.4,0.59243]
[1737010092032,2.33634785,3376.6,3376.5,0.59241]
[1737010110351,2.33634785,3376.9,3376.8,0.59236]
[1737010111449,2.33634785,3377.2,3377.1,0.5923]
[1737010114051,2.33634785,3377.2,3376.8,0.59235]
[1737010114349,2.33634785,3376.9,3376.8,0.59235]
[1737010115247,2.33634785,3376.9,3376.7,3.2078]
[1737010115449,2.2793,3376.8,3376.7,3.2078]
[1737010115750,2.2793,3376.8,3376.5,0.5924]
[1737010116148,2.2793,3376.8,3376.6,0.59239]
[1737010117255,2.2793,3376.8,3376.3,3.9345]
[1737010117455,2.2793,3376.8,3376.7,0.59238]
[1737010119551,2.33634785,3376.9,3376.4,0.722]
[1737010119853,2.33634785,3376.9,3376.8,0.59236]
[1737010120253,2.33634785,3376.9,3376.8,41.39236]
[1737010120450,4.64954785,3377.2,3376.8,40.8]
[1737010120651,2.33634785,3377.2,3377.1,0.59231]
[1737010124052,2.92864785,3377.2,3376.9,0.59233]
[1737010124257,2.33634785,3377.2,3377.1,0.59231]
[1737010125558,0.59231,3377.1,3376.8,3.80015]
[1737010125760,2.33634785,3376.9,3376.8,3.80015]
[1737010126563,3.81684785,3376.9,3376.8,3.80015]
[1737010128567,2.33634785,3377.2,3376.8,3.2078]
[1737010128763,2.33634785,3377.2,3377.1,0.59231]
[1737010129359,2.33634785,3377.2,3377.1,41.39231]
[1737010130263,2.33634785,3377.2,3377.1,40.8]
[1737010130472,2.33634785,3377.2,3377.0,0.59231]
[1737010130661,2.3075,3377.1,3377.0,0.59231]
[1737010134365,1.5674,3377.1,3377.0,0.59231]
[1737010135167,1.5674,3377.1,3377.0,41.39231]
[1737010135376,2.33634785,3377.2,3377.1,0.59231]
[1737010135675,2.33634785,3377.2,3377.0,0.59231]
[1737010135864,2.33634785,3377.2,3377.1,0.59231]
[1737010136066,2.33634785,3377.2,3377.1,41.39231]
[1737010136677,2.33634785,3377.2,3377.0,0.59232]
[1737010136977,2.33634785,3377.1,3377.0,0.59232]
[1737010137174,2.33634785,3377.1,3376.8,44.0078]
[1737010137575,0.7592,3377.0,3376.9,0.59234]
[1737010138575,7.04274785,3377.4,3377.3,0.59227]
[1737010138776,4.7064,3377.4,3377.3,0.59227]
[1737010139077,7.04274785,3377.4,3377.3,0.59227]
[1737010140778,7.04274785,3377.4,3377.2,0.59228]
[1737010141580,7.04274785,3377.4,3376.8,44.0078]
[1737010141778,7.04274785,3377.4,3377.3,0.59227]
[1737010143280,5.54414785,3377.4,3377.3,0.59227]
[1737010143479,2.33634785,3377.7,3377.6,0.59222]
[1737010143979,2.33634785,3377.7,3377.5,0.59223]
[1737010144277,0.7893,3377.6,3377.5,0.59223]
[1737010145881,0.7893,3377.6,3377.4,2.16285]
[1737010146483,0.7893,3377.6,3377.5,0.59224]
[1737010146683,0.7893,3377.6,3377.4,2.16285]
[1737010147078,0.7893,3377.6,3377.4,1.5706]
[1737010147278,0.7893,3377.6,3377.5,0.59224]
[1737010149084,3.12564785,3377.6,3377.5,0.59224]
[1737010152793,3.12564785,3377.6,3377.4,0.7878]
[1737010152987,3.12564785,3377.6,3377.1,3.2078]
[1737010152988,3.71787785,3377.6,3377.3,0.59227]
[1737010153192,2.33634785,3377.4,3377.3,0.59227]
[1737010153695,2.33634785,3377.4,3377.1,3.2078]
[1737010153886,1.5438,3377.3,3377.1,3.8001]
[1737010154091,1.5438,3377.3,3377.2,0.59229]
[1737010156999,1.5438,3377.3,3377.0,0.59232]
[1737010157195,1.5438,3377.3,3376.8,41.5349]
[1737010157196,2.13608,3377.3,3376.8,41.5349]
[1737010157400,2.33634785,3376.9,3376.8,42.12726]
[1737010158999,2.33634785,3376.9,3376.8,42.88446]
[1737010160399,2.33634785,3376.9,3376.8,41.39236]
[1737010161699,2.33634785,3376.9,3376.8,40.8]
[1737010161905,2.33634785,3376.9,3376.6,3.9823]
[1737010162203,2.33634785,3376.9,3376.8,0.59236]
[1737010162806,2.33634785,3377.2,3377.1,0.59231]
[1737010163504,2.33634785,3377.2,3377.1,1.36561]
[1737010163805,2.33634785,3377.2,3377.1,42.16561]
[1737010164307,2.33634785,3377.5,3377.4,0.59225]
[1737010168105,2.33634785,3377.5,3377.4,1.36135]
[1737010172508,2.33634785,3377.5,3377.4,2.11245]
[1737010176615,3.2078,3378.1,3378.0,0.59215]
[1737010177208,2.33634785,3378.2,3378.1,0.59213]
[1737010178816,2.33634785,3378.2,3378.0,0.59214]
[1737010179119,2.33634785,3378.2,3378.1,0.59213]
[1737010179505,2.33634785,3378.2,3377.7,3.2078]
[1737010179710,0.7557,3378.1,3378.0,0.59214]
[1737010180112,1.34784,3378.1,3377.7,3.79999]
[1737010180413,2.33634785,3377.8,3377.7,3.79999]
[1737010182018,2.33634785,3377.8,3377.7,0.59219]
[1737010183112,3.05774785,3377.8,3377.7,0.59219]
[1737010184215,3.05774785,3377.8,3377.5,0.7207]
[1737010184411,3.05774785,3377.8,3377.6,0.59221]
[1737010184816,3.64993785,3377.8,3377.6,0.59221]
[1737010185421,0.59221,3377.7,3377.5,0.59223]
[1737010185622,0.7627,3377.6,3377.5,0.59223]
[1737010188523,0.7627,3377.6,3377.4,0.59225]
[1737010188724,3.13444785,3377.5,3377.4,0.59225]
[1737010189422,3.13444785,3377.5,3377.3,3.2078]
[1737010189724,3.13444785,3377.5,3377.4,0.59225]
[1737010193329,1.8510141,3377.5,3377.4,0.59225]
[1737010195326,1.8510141,3377.5,3377.4,1.38175]
[1737010195515,1.0529141,3377.5,3377.4,1.38175]
[1737010195721,1.0529141,3377.5,3377.4,2.15485]
[1737010197328,2.3327588,3377.6,3377.4,1.5626]
[1737010197531,2.3327588,3377.6,3377.5,0.59224]
[1737010197826,1.4429,3377.8,3377.4,1.5626]
[1737010198027,1.4429,3377.8,3377.7,0.5922]
[1737010198226,3.7756588,3377.8,3377.7,0.5922]
[1737010198423,1.4429,3377.8,3377.7,0.5922]
[1737010198627,5.5405588,3378.3,3377.4,2.3013]
[1737010198930,6.9868588,3378.3,3378.2,0.59211]
[1737010200527,3.7790588,3378.3,3377.7,3.2078]
[1737010200727,3.7790588,3378.3,3378.2,0.59211]
[1737010201229,2.3327588,3378.3,3378.2,0.59211]
[1737010202423,2.3327588,3378.6,3378.5,0.59206]
[1737010207422,2.3327588,3378.6,3378.0,40.8]
[1737010207628,2.3327588,3378.2,3378.1,0.59213]
[1737010212736,4.6465588,3378.5,3378.4,0.59208]
[1737010216238,4.6465588,3378.5,3377.9,4.7252]
[1737010216433,4.6465588,3378.5,3378.3,0.59209]
[1737010217433,1.05233875,3378.4,3378.1,0.59213]
[1737010217632,1.05233875,3378.2,3378.1,0.59213]
[1737010219735,2.3138,3378.5,3378.0,3.2078]
[1737010219933,0.7843,3378.5,3378.4,0.59208]
[1737010221837,1.83663875,3378.5,3378.4,0.59208]
[1737010224143,0.7653,3379.0,3378.7,0.59203]
[1737010224442,1.05233875,3379.1,3379.0,0.59197]
[1737010225450,0.7234,3379.3,3379.2,0.59194]
[1737010226032,2.3303475,3379.5,3379.4,0.5919]
[1737010226439,2.3303475,3379.5,3379.3,0.59191]
[1737010227337,2.3303475,3379.5,3378.9,0.59199]
[1737010227539,2.3303475,3379.5,3378.8,3.2078]
[1737010227940,2.3303475,3379.5,3379.3,0.59191]
[1737010228141,2.3303475,3379.5,3378.8,3.2078]
[1737010228347,2.3303475,3379.5,3379.4,0.5919]
[1737010228535,2.3303475,3379.5,3378.8,3.2078]
[1737010228845,2.3303475,3379.5,3379.3,0.59191]
[1737010229043,2.3303475,3379.5,3378.7,1.48005]
[1737010229247,2.3303475,3379.5,3379.4,0.5919]
[1737010229446,2.3303475,3379.5,3379.3,0.59191]
[1737010229758,2.3303475,3379.5,3379.0,3.2078]
[1737010229759,2.3303475,3379.5,3379.4,0.5919]
[1737010232254,2.3303475,3379.5,3379.0,3.2078]
[1737010232448,2.9222875,3379.2,3378.9,0.59198]
[1737010232644,2.3303475,3379.0,3378.9,0.59198]
[1737010238041,2.3303475,3379.3,3379.2,0.59194]
[1737010240748,0.776,3379.6,3379.5,0.59189]
[1737010242554,0.776,3379.6,3379.4,0.59189]
[1737010242752,3.0995475,3379.5,3379.4,0.59189]
[1737010244459,3.0995475,3379.5,3379.1,3.2078]
[1737010244658,2.3303475,3379.2,3379.1,3.79976]
[1737010245773,2.3303475,3379.2,3379.1,0.59196]
[1737010245972,3.0995475,3379.5,3379.0,0.7952]
[1737010246183,0.776,3379.6,3379.1,3.2078]
[1737010246476,0.776,3379.6,3379.5,0.59189]
[1737010246859,0.776,3379.6,3379.5,3.79969]
[1737010247057,0.7903,3379.7,3379.5,3.2078]
[1737010247365,0.7903,3379.7,3379.6,0.59187]
[1737010247661,0.7903,3379.7,3379.6,1.37667]
[1737010248660,2.3303475,3379.8,3379.6,0.7848]
[1737010248868,0.59169,3380.7,3380.3,0.59175]
[1737010249165,2.3303475,3380.6,3379.9,3.2078]
[1737010249472,2.3303475,3380.6,3380.4,0.59171]
[1737010250764,2.3303475,3380.6,3380.3,0.59174]
[1737010250967,2.3303475,3380.6,3380.4,0.59172]
[1737010251479,2.3303475,3380.6,3380.5,0.59171]
[1737010256374,2.3303475,3380.6,3380.3,1.542]
[1737010256375,2.3303475,3380.6,3380.3,1.35624]
[1737010256580,2.3303475,3380.6,3380.0,0.7775]
[1737010256879,2.3303475,3380.3,3380.2,0.59176]
[1737010257084,2.30575082,3380.3,3380.2,0.59176]
[1737010257581,2.3303475,3380.6,3380.0,0.7775]
[1737010258180,2.3303475,3380.6,3380.4,0.59173]
[1737010258583,2.3303475,3380.6,3380.5,0.59171]
[1737010260374,2.966,3381.1,3380.3,0.7756]
[1737010260375,3.2078,3381.3,3380.3,1.5142]
[1737010260578,2.3303475,3381.2,3380.3,1.5142]
[1737010260780,2.3303475,3381.2,3381.0,0.59161]
[1737010260978,2.3303475,3381.2,3381.1,0.59161]
[1737010261384,2.3303475,3381.2,3380.5,40.8]
[1737010261583,2.3303475,3380.9,3380.8,0.59165]
[1737010261784,2.3303475,3380.9,3380.6,0.7718]
[1737010261983,0.7287,3380.8,3380.6,0.59169]
[1737010262186,0.7287,3380.8,3380.3,1.5142]
[1737010262187,1.5591,3380.7,3380.4,0.59171]
[1737010262385,2.3303475,3380.6,3380.4,0.59171]
[1737010262582,2.9220475,3380.6,3380.3,0.7756]
[1737010262782,0.59173,3380.5,3380.2,3.79956]
[1737010263479,2.3303475,3380.6,3380.3,0.59173]
[1737010263685,2.3303475,3380.6,3380.4,0.59173]
[1737010265287,2.3303475,3380.6,3380.3,0.59173]
[1737010265487,2.3303475,3380.6,3380.4,0.59172]
[1737010266191,2.3303475,3380.6,3380.5,0.59171]
[1737010266591,1.5591,3380.7,3380.0,0.7503]
[1737010266888,1.5591,3380.7,3380.6,0.59169]
[1737010268589,0.7287,3380.8,3380.7,0.59168]
[1737010270893,2.3303475,3380.9,3380.8,0.59166]
[1737010272187,3.0716475,3381.2,3380.7,3.2078]
[1737010272494,3.0716475,3381.2,3381.1,0.59161]
[1737010272694,3.6632375,3381.2,3380.9,0.59164]
[1737010273096,3.0716475,3381.2,3380.8,40.8]
[1737010273292,2.3303475,3380.9,3380.8,41.39165]
[1737010273690,2.3303475,3380.9,3380.8,40.8]
[1737010273894,2.3303475,3380.9,3380.8,41.39166]
[1737010274294,3.1245475,3380.9,3380.8,41.39166]
[1737010275595,3.1245475,3380.9,3380.8,0.59166]
[1737010276194,3.7161975,3380.9,3380.7,0.59167]
[1737010277295,3.1245475,3380.9,3380.6,40.8]
[1737010277502,3.7161975,3380.9,3380.7,0.59167]
[1737010277899,3.1245475,3380.9,3380.6,40.8]
[1737010278301,3.1245475,3380.9,3380.7,0.59168]
[1737010278502,2.3303475,3380.9,3380.8,0.59166]
[1737010278799,3.0716475,3381.2,3381.1,0.59161]
[1737010281198,2.3303475,3381.2,3381.1,0.59161]
[1737010283599,2.3303475,3381.2,3381.1,2.85171]
[1737010292802,0.7658,3381.4,3381.3,0.59157]
[1737010293613,3.9171475,3381.5,3381.4,0.59155]
[1737010298016,1.5868,3381.5,3381.4,0.59155]
[1737010299515,3.9171475,3381.5,3381.4,0.59155]
[1737010303311,2.63715278,3381.5,3381.4,0.59155]
[1737010316233,3.2078,3382.2,3382.1,0.59143]
[1737010316439,1.555,3382.3,3382.2,0.59141]
[1737010317435,2.60535278,3382.3,3382.2,0.59141]
[1737010317842,2.60535278,3382.3,3382.1,0.59142]
[1737010318135,0.7268,3382.2,3382.1,0.59142]
[1737010319040,0.7268,3382.2,3382.0,0.59144]
[1737010319344,0.7268,3382.2,3381.9,0.7445]
[1737010319533,0.7268,3382.2,3382.1,0.59143]
[1737010320132,0.7268,3382.2,3381.9,0.7445]
[1737010320338,0.7268,3382.2,3382.1,0.59143]
[1737010320642,0.7268,3382.2,3382.0,0.59144]
[1737010320940,0.7268,3382.2,3382.1,0.59143]
[1737010324044,0.7268,3382.2,3382.0,0.59144]
[1737010324445,0.7268,3382.2,3381.9,0.7445]
[1737010324646,0.7268,3382.2,3382.1,0.59143]
[1737010324842,0.7268,3382.2,3382.0,0.59144]
[1737010325048,0.7268,3382.2,3382.1,0.59143]
[1737010326653,0.7268,3382.2,3382.0,0.59144]
[1737010327554,0.7268,3382.2,3381.9,1.33597]
[1737010327555,2.32646656,3382.1,3381.9,1.33597]
[1737010327855,0.59146,3382.0,3381.8,3.2078]
[1737010328350,0.59147,3381.9,3381.8,3.2078]
[1737010331851,0.59147,3381.9,3381.4,1.36355]
[1737010331852,2.32646656,3382.1,3381.4,0.772]
[1737010332053,1.5178,3381.8,3381.4,0.772]
[1737010332254,1.34222,3381.7,3381.4,0.772]
[1737010332853,0.59153,3381.6,3381.3,0.59157]
[1737010333045,0.59153,3381.6,3381.3,1.38617]
[1737010334158,0.7507,3381.7,3381.3,0.7946]
[1737010334459,0.59152,3381.6,3381.3,0.7946]
[1737010336656,1.34221,3381.7,3381.3,1.38616]
[1737010337047,2.91801656,3381.4,3381.3,0.7946]
[1737010337355,0.59161,3381.1,3381.0,0.7844]
[1737010337556,2.32646656,3381.1,3381.0,0.7844]
[1737010337756,0.5916,3381.2,3381.0,0.7844]
[1737010337964,0.7579,3381.2,3381.0,0.7844]
[1737010338155,1.34949,3381.2,3381.0,0.7844]
[1737010338354,0.7579,3381.2,3381.0,0.7844]
[1737010338554,0.59161,3381.1,3381.0,0.7844]
[1737010338753,0.7579,3381.2,3381.0,0.7844]
[1737010344262,0.7579,3381.2,3381.0,1.37602]
[1737010345362,3.2078,3381.7,3381.2,0.59159]
[1737010345661,3.2078,3381.7,3381.6,0.59152]
[1737010346163,2.2559,3382.1,3381.9,0.59145]
[1737010346561,2.2559,3382.1,3382.0,0.7924]
[1737010346959,2.2559,3382.1,3382.0,1.38385]
[1737010347361,2.2559,3382.1,3382.0,0.7924]
[1737010348261,2.2559,3382.1,3382.0,1.38385]
[1737010349258,2.2559,3382.1,3382.0,0.7924]
[1737010349664,2.2559,3382.1,3382.0,1.38385]
[1737010350963,3.2078,3382.2,3382.0,0.7924]
[1737010351164,3.2078,3382.2,3382.1,0.59143]
[1737010352260,3.2078,3382.2,3382.0,0.7924]
[1737010352468,3.2078,3382.2,3382.0,1.38383]
[1737010352761,3.2078,3382.2,3382.0,0.7924]
[1737010352971,3.2078,3382.2,3381.6,0.59151]
[1737010352972,0.59146,3382.0,3381.6,0.59151]
[1737010353165,0.7929,3381.9,3381.7,0.7378]
[1737010353365,0.7585,3381.8,3381.7,0.7378]
[1737010354267,0.7585,3381.8,3381.7,1.3293]
[1737010354666,0.7585,3381.8,3381.7,0.7378]
[1737010354867,0.7585,3381.8,3381.7,1.3293]
[1737010357669,0.59154,3381.5,3381.4,0.7241]
[1737010357873,2.32646656,3381.5,3381.3,40.8]
[1737010358170,2.91800656,3381.5,3381.3,40.8]
[1737010358566,2.32646656,3381.5,3381.3,40.8]
[1737010358767,2.91801656,3381.5,3381.3,40.8]
[1737010358968,0.786,3381.4,3381.3,40.8]
[1737010359170,1.5759,3381.4,3381.3,40.8]
[1737010362772,0.59144,3382.1,3381.8,0.59148]
[1737010362974,6.08342,3382.2,3381.9,0.59146]
[1737010363875,5.492,3382.2,3381.9,0.59146]
[1737010364076,5.492,3382.2,3382.0,0.59144]
[1737010364271,5.492,3382.2,3381.8,3.2078]
[1737010364577,5.492,3382.2,3382.1,0.59143]
[1737010364968,5.492,3382.2,3382.0,0.59144]
[1737010365775,5.492,3382.2,3381.9,1.33645]
[1737010367870,6.08342,3382.2,3381.9,1.33645]
[1737010368072,5.492,3382.2,3381.9,1.33645]
[1737010369175,5.492,3382.2,3381.9,0.59145]
[1737010369375,0.59144,3382.1,3381.8,3.2078]
[1737010372384,0.59144,3382.1,3381.8,3.79928]
[1737010372785,0.59144,3382.1,3381.8,0.59148]
[1737010374582,0.59144,3382.1,3381.7,0.59149]
[1737010375280,0.59143,3382.1,3381.7,0.59149]
[1737010375498,2.32646656,3382.0,3381.4,3.9615]
[1737010375786,0.59149,3381.8,3381.4,1.34524]
[1737010375985,1.5228,3381.7,3381.4,1.34524]
[1737010376187,2.2919,3381.7,3381.4,1.34524]
[1737010377080,2.2919,3381.7,3381.4,0.7537]
[1737010377281,2.2919,3381.7,3381.5,0.59153]
[1737010380480,0.59165,3380.9,3380.6,6.9466243]
[1737010380788,2.91812656,3380.8,3380.7,5.38418286]
[1737010381084,2.91812656,3380.8,3380.7,45.43108286]
[1737010381085,3.70032656,3380.8,3380.7,45.43108286]
[1737010381284,3.10866656,3380.8,3380.3,0.7531]
[1737010381484,0.59171,3380.6,3380.3,0.7531]
[1737010381689,0.7301,3380.5,3380.4,40.8]
[1737010382284,0.7301,3380.5,3380.3,0.7531]
[1737010382285,0.59173,3380.4,3380.3,0.7531]
[1737010382889,0.59173,3380.4,3380.2,40.8]
[1737010383287,3.81326656,3380.5,3380.1,3.2078]
[1737010383494,2.91822656,3380.2,3380.1,3.2078]
[1737010383695,2.32646656,3380.2,3379.5,7.83888286]
[1737010383895,2.32646656,3379.8,3379.5,7.83888286]
[1737010384190,0.59187,3379.6,3379.5,4.63108286]
[1737010384892,0.59187,3379.6,3379.2,0.59193]
[1737010385090,3.08316656,3379.8,3379.1,4.7734]
[1737010385289,3.67501656,3379.8,3379.4,0.5919]
[1737010385488,3.08316656,3379.8,3379.2,40.8]
[1737010385793,3.67500656,3379.8,3379.4,0.5919]
[1737010385984,0.59185,3379.7,3379.4,0.5919]
[1737010386483,0.59188,3379.6,3379.2,40.8]
[1737010386687,2.91836656,3379.5,3379.2,40.8]
[1737010388087,2.32646656,3379.5,3379.2,40.8]
[1737010388396,2.32646656,3379.5,3379.2,41.39193]
[1737010389794,2.32646656,3379.5,3379.2,40.8]
[1737010390391,2.91835656,3379.5,3379.2,40.8]
[1737010390594,0.59191,3379.4,3379.1,1.5656]
[1737010390894,0.59192,3379.4,3379.1,1.5656]
[1737010391192,6.12616656,3379.5,3379.1,1.5656]
[1737010391995,5.53426656,3379.5,3379.1,2.15755]
[1737010392797,5.53426656,3379.5,3379.1,1.5656]
[1737010393093,3.2078,3379.9,3379.8,0.59183]
[1737010393290,2.32646656,3380.4,3379.5,3.2078]
[1737010393594,0.59175,3380.3,3379.8,0.59182]
[1737010393790,0.59175,3380.3,3379.8,41.39182]
[1737010393988,2.91819656,3380.4,3379.9,1.36891]
[1737010394192,2.32646656,3380.4,3380.0,0.5918]
[1737010394397,2.32646656,3380.4,3379.9,1.5651]
[1737010394590,2.91819656,3380.4,3379.9,2.15691]
[1737010396593,0.59175,3380.3,3379.9,1.5651]
[1737010396897,0.59175,3380.3,3379.9,2.15692]
[1737010397196,2.32646656,3380.1,3379.9,1.5651]
[1737010399095,0.5918,3380.0,3379.6,41.39186]
[1737010399294,0.5918,3380.0,3379.6,40.8]
[1737010399892,0.5918,3380.0,3379.5,3.79968]
[1737010399893,2.91830656,3379.8,3379.5,3.2078]
[1737010400091,0.59187,3379.7,3379.3,1.5115]
[1737010400298,2.32646656,3379.8,3379.3,1.5115]
[1737010400499,0.59187,3379.6,3379.3,1.5115]
[1737010401893,0.59186,3379.7,3379.3,1.5115]
[1737010402088,2.91830656,3379.8,3379.4,0.5919]
[1737010402397,2.91830656,3379.8,3379.3,2.10341]
[1737010402398,0.59185,3379.7,3379.3,2.10341]
[1737010403488,2.91830656,3379.8,3379.4,0.5919]
[1737010403889,2.32646656,3379.8,3379.5,0.59187]
[1737010404094,2.32646656,3379.8,3379.6,0.59187]
[1737010405402,2.32646656,3379.8,3379.5,3.2078]
[1737010405598,3.9396,3380.6,3379.5,3.2078]
[1737010405799,0.59174,3380.4,3380.0,0.59179]
[1737010405996,0.59174,3380.4,3380.1,1.4631]
[1737010406795,2.91818656,3380.5,3380.1,2.05488]
[1737010407594,0.59173,3380.4,3380.1,1.4631]
[1737010409107,2.32646656,3380.5,3380.1,1.4631]
[1737010409401,2.91818656,3380.5,3380.1,1.4631]
[1737010409903,2.91818656,3380.5,3380.1,2.05488]
[1737010411310,2.91818656,3380.5,3380.2,0.59175]
[1737010411311,2.32646656,3380.5,3380.2,0.59175]
[1737010411511,2.91817656,3380.5,3380.1,2.05487]
[1737010411714,2.32646656,3380.5,3380.3,0.59175]
[1737010412710,2.32646656,3380.5,3380.1,1.4631]
[1737010412912,3.2078,3380.6,3380.5,0.59171]
[1737010414318,3.2078,3380.6,3380.2,40.8]
[1737010414515,3.2078,3380.6,3380.4,0.59172]
[1737010414723,3.2078,3380.6,3380.5,0.59171]
[1737010416118,2.32646656,3380.7,3380.5,0.59171]
[1737010417716,4.6748,3380.9,3380.2,40.8]
[1737010417912,3.2078,3380.9,3380.8,0.59166]
[1737010418316,3.2078,3380.9,3380.6,0.59168]
[1737010418619,3.2078,3380.9,3380.7,0.59167]
[1737010418821,3.2078,3380.9,3380.3,0.7801]
[1737010419122,3.2078,3380.9,3380.7,0.59167]
[1737010419923,3.2078,3380.9,3380.8,0.59166]
[1737010420122,0.59163,3381.0,3380.6,0.59168]
[1737010421123,0.59164,3380.9,3380.5,0.5917]
[1737010421621,0.7958,3380.8,3380.5,0.5917]
[1737010422213,0.7958,3380.8,3380.6,0.59169]
[1737010422919,3.12226656,3380.8,3380.5,0.59171]
[1737010423122,1.5441,3380.7,3380.4,3.2078]
[1737010423318,1.5441,3380.7,3380.4,3.79953]
[1737010423520,2.32646656,3380.5,3380.4,3.2078]
[1737010424618,2.91818656,3380.5,3380.1,1.31858]
[1737010424818,2.32646656,3380.5,3380.2,0.59176]
[1737010425024,2.91818656,3380.5,3380.1,1.31858]
[1737010426722,2.32646656,3380.5,3380.1,0.7268]
[1737010426926,2.32646656,3380.5,3380.2,0.59176]
[1737010428928,2.32646656,3380.5,3380.1,0.7268]
[1737010429229,2.32646656,3380.5,3380.3,0.59174]
[1737010430522,2.32646656,3380.5,3380.2,0.59176]
[1737010430727,3.2078,3381.4,3381.2,0.59158]
[1737010430927,0.7835,3381.4,3380.7,3.2078]
[1737010431127,0.7835,3381.4,3380.8,0.7327]
[1737010431324,0.7835,3381.4,3380.9,40.8]
[1737010432122,3.10996656,3381.4,3381.1,0.5916]
[1737010432324,0.7285,3381.3,3381.1,0.5916]
[1737010435633,0.7285,3381.3,3380.8,1.4968]
[1737010435836,0.7285,3381.3,3381.0,0.59162]
[1737010437625,0.7285,3381.3,3380.8,1.4968]
[1737010437826,0.7285,3381.3,3381.1,0.59159]
[1737010438229,0.7285,3381.3,3380.8,1.4968]
[1737010438440,0.7285,3381.3,3381.2,0.59159]
[1737010439132,3.10996656,3381.4,3381.2,0.59159]
[1737010440937,3.10996656,3381.4,3381.1,0.5916]
[1737010441131,3.10996656,3381.4,3380.9,0.59164]
[1737010441324,3.10996656,3381.4,3380.8,0.7327]
[1737010441529,3.10996656,3381.4,3381.1,0.5916]
[1737010441734,3.10996656,3381.4,3380.8,0.7327]
[1737010442534,2.32646656,3381.1,3380.8,3.2078]
[1737010442832,2.32646656,3381.1,3380.4,3.9583]
[1737010442833,5.53426656,3381.1,3380.4,3.9583]
[1737010443028,2.32646656,3380.7,3380.5,0.5917]
[1737010443533,2.32646656,3380.7,3380.4,3.9583]
[1737010443836,2.32646656,3380.7,3380.6,0.59169]
[1737010444835,2.32646656,3380.7,3380.5,0.5917]
[1737010445738,2.91814656,3380.7,3380.5,0.5917]
[1737010445930,0.59166,3380.8,3380.5,0.5917]
[1737010446131,2.91811656,3380.9,3380.6,0.59169]
[1737010446332,2.32646656,3380.9,3380.7,0.59166]
[1737010446531,2.32646656,3380.9,3380.7,0.59167]
[1737010446736,2.91811656,3380.9,3380.4,3.9583]
[1737010446936,2.91811656,3380.9,3380.6,0.59169]
[1737010447441,2.32646656,3380.9,3380.7,0.59167]
[1737010450142,2.32646656,3380.9,3380.7,0.59166]
[1737010451444,2.91810656,3380.9,3380.6,0.59168]
[1737010451645,0.7954,3380.8,3380.5,1.3314]
[1737010451946,0.7954,3380.8,3380.6,0.59169]
[1737010452148,1.38706,3380.8,3380.5,1.33141]
[1737010452447,1.38706,3380.8,3380.5,0.7397]
[1737010452448,0.59169,3380.7,3380.5,0.7397]
[1737010452744,1.36079,3380.7,3380.5,0.7397]
[1737010453543,1.36079,3380.7,3380.4,3.2078]
[1737010453747,2.32646656,3380.6,3380.4,3.2078]
[1737010454248,0.7447,3380.5,3380.4,3.2078]
[1737010455448,0.7447,3380.5,3380.4,3.79953]
[1737010455845,0.7447,3380.5,3380.4,0.59173]
[1737010458152,0.7447,3380.5,3380.3,0.59174]
[1737010458449,0.7447,3380.5,3380.1,0.7665]